[Event "3rd FIDE WCCC Rapid G12 2019"]
[Site "Minsk"]
[Date "2019.08.17"]
[Round "7.5"]
[White "Szczotka, Klara"]
[Black "Lomakina, Anzhelika"]
[Result "0-1"]
[ECO "C65"]
[WhiteElo "1732"]
[BlackElo "1732"]
[Annotator "NA"]
[PlyCount "52"]
[EventDate "2019.08.16"]
[EventType "swiss"]
[EventCountry "BLR"]
[SourceTitle "playchess.com"]
[Source "ChessBase"]
[SourceQuality "1"]
[TimeControl "600+5"]

1. e4 {[%emt 0:00:00]} e5 {[%emt 0:00:00]} 2. Nf3 {[%emt 0:00:00]} Nc6 {[%emt 0:00:00]} 3. Bb5 {[%emt 0:00:00]} Nf6 {[%emt 0:00:00]} 4. d3 {[%emt 0:00:00]} Bc5 {[%emt 0:00:00]} 5. c3 {[%emt 0:00:02]} O-O {[%emt 0:00:00]} 6. Nbd2 {[%emt 0:00:04]} Re8 {[%emt 0:01:02]} 7. h3 {[%emt 0:00:22]} d5 {[%emt 0:00:29]} 8. Qe2 {[%emt 0:00:43]} Nh5 {[%emt 0:00:45]} 9. Nb3 {[%emt 0:01:30]} Bb6 {[%emt 0:00:40]} 10. a4 {[%emt 0:02:44]} a6 {[%emt 0:01:10]} 11. Bxc6 bxc6 12. g4 {[%emt 0:01:33]} Nf4 {[%emt 0:00:10]} 13. Bxf4 {[%emt 0:00:02]} exf4 {[%emt 0:00:01]} 14. O-O-O {[%emt 0:00:08]} c5 {[%emt 0:02:03]} 15. Rhe1 {[%emt 0:00:45]} a5 {[%emt 0:01:04]} 16. Qc2 {[%emt 0:01:15]} Qd7 {[%emt 0:00:32]} 17. exd5 {[%emt 0:00:21]} Bb7 {[%emt 0:00:30]} 18. c4 {[%emt 0:00:02]} Qxa4 {[%emt 0:00:19]} 19. Re4 {[%emt 0:00:49]} Qb4 {[%emt 0:01:06]} 20. Rxf4 {[%emt 0:01:01]} a4 {[%emt 0:01:06]} 21. Na1 {[%emt 0:00:12]} a3 {[%emt 0:00:27]} 22. bxa3 {[%emt 0:00:08]} Rxa3 {[%emt 0:00:16]} 23. Qb2 {[%emt 0:00:03]} Qa4 {[%emt 0:00:05]} 24. Nc2 {[%emt 0:00:04]} Bxd5 {[%emt 0:00:02]} 25. Kd2 {[%emt 0:00:07]} Ra2 {[%emt 0:00:04]} 26. Qc1 {[%emt 0:00:08]} Ba5# {[%emt 0:00:04]} 0-1

[Event "3rd FIDE WCCC Rapid G12 2019"]
[Site "Minsk"]
[Date "2019.08.17"]
[Round "7.6"]
[White "Zhapova, Yana"]
[Black "Nguyen, Le Cam Hien"]
[Result "0-1"]
[ECO "B52"]
[WhiteElo "1809"]
[BlackElo "1579"]
[Annotator "NA"]
[PlyCount "96"]
[EventDate "2019.08.16"]
[EventType "swiss"]
[EventCountry "BLR"]
[SourceTitle "playchess.com"]
[Source "ChessBase"]
[SourceQuality "1"]
[TimeControl "600+5"]

1. e4 {[%emt 0:00:00]} c5 {[%emt 0:00:00]} 2. Nf3 {[%emt 0:00:00]} d6 {[%emt 0:00:01]} 3. Bb5+ {[%emt 0:00:01]} Bd7 {[%emt 0:00:03]} 4. c4 {[%emt 0:00:03]} a6 {[%emt 0:00:11]} 5. Bxd7+ {[%emt 0:00:04]} Qxd7 {[%emt 0:00:02]} 6. d4 {[%emt 0:00:11]} cxd4 {[%emt 0:00:18]} 7. Nxd4 {[%emt 0:00:02]} Nf6 {[%emt 0:00:12]} 8. Nc3 {[%emt 0:00:01]} g6 {[%emt 0:00:07]} 9. O-O {[%emt 0:00:18]} Bg7 {[%emt 0:00:04]} 10. b3 {[%emt 0:00:34]} O-O {[%emt 0:00:09]} 11. Bb2 {[%emt 0:00:03]} Nc6 {[%emt 0:00:06]} 12. Nxc6 {[%emt 0:00:06]} Qxc6 {[%emt 0:00:06]} 13. Nd5 {[%emt 0:00:04]} Nxd5 {[%emt 0:00:31]} 14. exd5 {[%emt 0:00:13]} Qd7 {[%emt 0:00:04]} 15. Bxg7 {[%emt 0:00:10]} Kxg7 {[%emt 0:00:02]} 16. Re1 {[%emt 0:00:03]} b5 {[%emt 0:00:29]} 17. Qd4+ {[%emt 0:00:24]} Kg8 {[%emt 0:00:02]} 18. Re3 {[%emt 0:00:41]} bxc4 {[%emt 0:00:32]} 19. bxc4 {[%emt 0:00:08]} Rab8 {[%emt 0:00:49]} 20. Rae1 {[%emt 0:00:20]} Rb7 {[%emt 0:00:25]} 21. Qh4 {[%emt 0:00:44]} e5 {[%emt 0:00:48]} 22. c5 {[%emt 0:02:25]} dxc5 {[%emt 0:00:18]} 23. Rxe5 {[%emt 0:00:01]} Rb4 {[%emt 0:00:44]} 24. Qf6 {[%emt 0:00:30]} Rd4 {[%emt 0:00:31]} 25. Re7 {[%emt 0:01:54]} Qxd5 {[%emt 0:00:38]} 26. Re8 {[%emt 0:00:10]} Qd6 {[%emt 0:00:02]} 27. Rxf8+ {[%emt 0:00:05]} Qxf8 {[%emt 0:00:01]} 28. Qxa6 {[%emt 0:00:03]} Kg7 {[%emt 0:00:35]} 29. h3 {[%emt 0:00:38]} Qb8 {[%emt 0:00:25]} 30. Qe2 {[%emt 0:00:25]} Rd5 {[%emt 0:01:18]} 31. Qc4 {[%emt 0:00:19]} Qd6 {[%emt 0:00:43]} 32. Qc3+ {[%emt 0:00:07]} f6 {[%emt 0:00:28]} 33. a4 {[%emt 0:00:19]} Rd1 {[%emt 0:00:20]} 34. a5 {[%emt 0:00:19]} Rxe1+ {[%emt 0:00:03]} 35. Qxe1 c4 {[%emt 0:00:12]} 36. Qc3 {[%emt 0:00:36]} Qd1+ {[%emt 0:00:07]} 37. Kh2 {[%emt 0:00:02]} Qa4 {[%emt 0:00:07]} 38. Qe1 {[%emt 0:00:18]} Kf7 {[%emt 0:00:08]} 39. Qd2 {[%emt 0:00:17]} Qb5 {[%emt 0:00:05]} 40. Qa2 {[%emt 0:00:04]} Qa6 {[%emt 0:00:06]} 41. Qa4 {[%emt 0:00:08]} Ke6 {[%emt 0:00:12]} 42. Qb4 {[%emt 0:00:04]} Qd6+ {[%emt 0:00:03]} 43. Qxd6+ Kxd6 {[%emt 0:00:03]} 44. a6 {[%emt 0:00:12]} Kc6 {[%emt 0:00:01]} 45. Kg3 {[%emt 0:00:03]} c3 {[%emt 0:00:04]} 46. Kf3 {[%emt 0:00:05]} c2 {[%emt 0:00:01]} 47. a7 {[%emt 0:00:01]} Kb7 {[%emt 0:00:01]} 48. Ke2 {[%emt 0:00:05]} c1=Q {[%emt 0:00:03]} 0-1

[Event "3rd FIDE WCCC Rapid G12 2019"]
[Site "Minsk"]
[Date "2019.08.17"]
[Round "8.1"]
[White "Kaldarova, Ayaulym"]
[Black "Shubenkova, Veronika"]
[Result "1/2-1/2"]
[ECO "D02"]
[WhiteElo "1549"]
[BlackElo "1740"]
[Annotator "NA"]
[PlyCount "84"]
[EventDate "2019.08.16"]
[EventType "swiss"]
[EventCountry "BLR"]
[SourceTitle "playchess.com"]
[Source "ChessBase"]
[SourceQuality "1"]
[TimeControl "600+5"]

1. d4 {[%emt 0:00:00]} d5 {[%emt 0:00:00]} 2. Nf3 {[%emt 0:00:00]} e6 {[%emt 0:00:00]} 3. c4 {[%emt 0:00:00]} c6 {[%emt 0:00:00]} 4. cxd5 {[%emt 0:00:18]} exd5 {[%emt 0:00:18]} 5. Nc3 {[%emt 0:00:02]} Nf6 {[%emt 0:00:10]} 6. Bg5 {[%emt 0:00:03]} Be7 {[%emt 0:00:01]} 7. h3 {[%emt 0:00:04]} O-O {[%emt 0:00:02]} 8. e3 {[%emt 0:00:03]} Bf5 {[%emt 0:00:03]} 9. Bd3 {[%emt 0:00:05]} Ne4 {[%emt 0:00:24]} 10. Bxe7 {[%emt 0:00:09]} Qxe7 {[%emt 0:00:03]} 11. O-O {[%emt 0:00:07]} Bg6 {[%emt 0:00:03]} 12. Ne5 {[%emt 0:00:11]} f5 {[%emt 0:01:43]} 13. Rc1 {[%emt 0:01:29]} Nd7 {[%emt 0:00:13]} 14. Nxd7 {[%emt 0:01:22]} Qxd7 {[%emt 0:00:01]} 15. b4 {[%emt 0:00:06]} a6 {[%emt 0:00:42]} 16. a4 {[%emt 0:00:03]} Qe7 {[%emt 0:00:01]} 17. b5 {[%emt 0:00:09]} axb5 {[%emt 0:00:13]} 18. axb5 {[%emt 0:00:03]} Qg5 {[%emt 0:00:40]} 19. f4 {[%emt 0:00:36]} Nxc3 {[%emt 0:02:29]} 20. Rxc3 {[%emt 0:01:02]} Qe7 {[%emt 0:00:02]} 21. Qf3 {[%emt 0:00:05]} Be8 {[%emt 0:00:34]} 22. Rfc1 {[%emt 0:00:17]} Bd7 {[%emt 0:00:21]} 23. Kf2 {[%emt 0:01:09]} Ra2+ {[%emt 0:00:19]} 24. R1c2 {[%emt 0:00:14]} Rxc2+ {[%emt 0:00:02]} 25. Rxc2 {[%emt 0:00:01]} Re8 {[%emt 0:00:16]} 26. g3 {[%emt 0:00:12]} Qd6 {[%emt 0:00:33]} 27. bxc6 {[%emt 0:01:12]} bxc6 {[%emt 0:00:04]} 28. g4 {[%emt 0:00:12]} fxg4 {[%emt 0:00:15]} 29. hxg4 {[%emt 0:00:02]} Qh6 {[%emt 0:00:01]} 30. Kg3 {[%emt 0:00:49]} Qe6 {[%emt 0:00:15]} 31. Re2 {[%emt 0:00:25]} Qf6 {[%emt 0:00:35]} 32. Rh2 {[%emt 0:00:16]} h6 {[%emt 0:00:05]} 33. Rh5 {[%emt 0:00:24]} Qe6 {[%emt 0:00:15]} 34. Re5 {[%emt 0:00:21]} Qf6 {[%emt 0:00:02]} 35. Bf5 {[%emt 0:00:35]} Qd6 {[%emt 0:00:26]} 36. Bxd7 {[%emt 0:00:14]} Qxd7 {[%emt 0:00:01]} 37. e4 {[%emt 0:00:20]} dxe4 {[%emt 0:00:37]} 38. Qxe4 {[%emt 0:00:01]} Rd8 {[%emt 0:00:05]} 39. Re7 {[%emt 0:00:20]} Qd6 {[%emt 0:00:39]} 40. Re8+ {[%emt 0:00:10]} Rxe8 {[%emt 0:00:10]} 41. Qxe8+ {[%emt 0:00:01]} Kh7 {[%emt 0:00:00]} 42. Qe4+ {[%emt 0:00:01]} Kg8 1/2-1/2

[Event "3rd FIDE WCCC Rapid G12 2019"]
[Site "Minsk"]
[Date "2019.08.17"]
[Round "8.2"]
[White "Vlasova, Olesia"]
[Black "Babic, Masa"]
[Result "1-0"]
[ECO "A05"]
[WhiteElo "1799"]
[BlackElo "1719"]
[Annotator "NA"]
[PlyCount "235"]
[EventDate "2019.08.16"]
[EventType "swiss"]
[EventCountry "BLR"]
[SourceTitle "playchess.com"]
[Source "ChessBase"]
[SourceQuality "1"]
[TimeControl "600+5"]

1. Nf3 {[%emt 0:00:00]} Nf6 {[%emt 0:00:00]} 2. c4 {[%emt 0:00:00]} d6 {[%emt 0:00:00]} 3. d4 {[%emt 0:00:04]} Nbd7 {[%emt 0:00:00]} 4. g3 {[%emt 0:00:07]} c6 {[%emt 0:00:01]} 5. Bg2 {[%emt 0:00:05]} e5 {[%emt 0:00:01]} 6. Nc3 {[%emt 0:00:07]} Be7 {[%emt 0:00:02]} 7. O-O {[%emt 0:00:07]} O-O {[%emt 0:00:01]} 8. e4 {[%emt 0:00:03]} Qc7 {[%emt 0:00:14]} 9. h3 {[%emt 0:00:16]} a6 {[%emt 0:00:25]} 10. Be3 {[%emt 0:00:11]} h6 {[%emt 0:00:54]} 11. Qe2 {[%emt 0:00:30]} b5 {[%emt 0:00:54]} 12. a3 {[%emt 0:00:09]} Bb7 {[%emt 0:00:35]} 13. Rac1 {[%emt 0:00:05]} Qa5 {[%emt 0:01:43]} 14. Rfd1 {[%emt 0:00:44]} Rfd8 {[%emt 0:00:26]} 15. Nd2 {[%emt 0:02:01]} exd4 {[%emt 0:03:18]} 16. Bxd4 {[%emt 0:00:24]} c5 {[%emt 0:00:50]} 17. Bxf6 {[%emt 0:00:16]} Bxf6 {[%emt 0:00:08]} 18. Nb3 {[%emt 0:01:03]} Qb6 {[%emt 0:00:22]} 19. cxb5 {[%emt 0:01:20]} Bxc3 {[%emt 0:00:09]} 20. Rxc3 {[%emt 0:00:43]} axb5 {[%emt 0:00:02]} 21. Rcd3 {[%emt 0:00:17]} Ne5 {[%emt 0:00:20]} 22. R3d2 {[%emt 0:00:11]} b4 {[%emt 0:00:21]} 23. axb4 {[%emt 0:00:31]} Qxb4 {[%emt 0:00:04]} 24. Nc1 {[%emt 0:00:16]} Ba6 {[%emt 0:00:30]} 25. Qe1 {[%emt 0:00:58]} Nc4 {[%emt 0:00:02]} 26. Rc2 {[%emt 0:00:07]} Qxe1+ {[%emt 0:00:03]} 27. Rxe1 {[%emt 0:00:02]} Ne5 {[%emt 0:00:04]} 28. Rd1 {[%emt 0:00:16]} Bb5 {[%emt 0:00:05]} 29. f4 {[%emt 0:00:35]} Nc4 {[%emt 0:00:02]} 30. Re1 {[%emt 0:00:31]} Ra1 {[%emt 0:00:03]} 31. Bf1 {[%emt 0:00:04]} Ra4 {[%emt 0:00:27]} 32. b3 {[%emt 0:00:24]} Na3 33. Ra2 {[%emt 0:00:05]} Ra7 {[%emt 0:00:06]} 34. Rxa3 Rxa3 {[%emt 0:00:03]} 35. Bxb5 {[%emt 0:00:04]} Ra1 {[%emt 0:00:03]} 36. Bc4 {[%emt 0:00:03]} Rda8 {[%emt 0:00:04]} 37. Nd3 {[%emt 0:00:03]} Rxe1+ 38. Nxe1 {[%emt 0:00:01]} Ra1 {[%emt 0:00:04]} 39. Kf2 {[%emt 0:00:02]} Ra2+ {[%emt 0:00:01]} 40. Kf3 {[%emt 0:00:03]} Kf8 {[%emt 0:00:05]} 41. Nd3 {[%emt 0:00:01]} Ke7 {[%emt 0:00:04]} 42. e5 {[%emt 0:00:09]} Rd2 {[%emt 0:00:12]} 43. exd6+ Kxd6 {[%emt 0:00:02]} 44. Ke3 {[%emt 0:00:14]} Rh2 {[%emt 0:00:02]} 45. h4 {[%emt 0:00:03]} f6 {[%emt 0:00:01]} 46. Kf3 {[%emt 0:00:07]} Rd2 {[%emt 0:00:03]} 47. Ke3 {[%emt 0:00:02]} Rg2 {[%emt 0:00:03]} 48. Kf3 {[%emt 0:00:10]} Rd2 {[%emt 0:00:01]} 49. Nf2 {[%emt 0:00:01]} f5 {[%emt 0:00:04]} 50. Ke3 {[%emt 0:00:11]} Ra2 {[%emt 0:00:02]} 51. Bd3 {[%emt 0:00:14]} Rb2 {[%emt 0:00:11]} 52. Bc4 {[%emt 0:00:04]} Rc2 {[%emt 0:00:11]} 53. Nd3 {[%emt 0:00:03]} Rg2 {[%emt 0:00:05]} 54. Kf3 {[%emt 0:00:01]} Rc2 {[%emt 0:00:05]} 55. g4 {[%emt 0:00:12]} fxg4+ {[%emt 0:00:16]} 56. Kxg4 {[%emt 0:00:01]} Rg2+ {[%emt 0:00:08]} 57. Kf3 {[%emt 0:00:11]} Rh2 {[%emt 0:00:02]} 58. Kg3 {[%emt 0:00:01]} Rd2 {[%emt 0:00:04]} 59. Ne5 {[%emt 0:00:04]} Rc2 {[%emt 0:00:07]} 60. Nf7+ {[%emt 0:00:05]} Ke7 {[%emt 0:00:01]} 61. Ne5 {[%emt 0:00:04]} Kd6 {[%emt 0:00:01]} 62. h5 {[%emt 0:00:06]} Rc3+ {[%emt 0:00:04]} 63. Kg4 {[%emt 0:00:02]} Rc1 {[%emt 0:00:02]} 64. Kf5 {[%emt 0:00:03]} Rg1 {[%emt 0:00:02]} 65. Nf7+ {[%emt 0:00:16]} Ke7 {[%emt 0:00:04]} 66. Ne5 {[%emt 0:00:06]} Kd6 {[%emt 0:00:02]} 67. Bf7 {[%emt 0:00:08]} Rg3 {[%emt 0:00:09]} 68. Nc4+ {[%emt 0:00:04]} Ke7 {[%emt 0:00:01]} 69. Ne5 {[%emt 0:00:04]} Re3 {[%emt 0:00:07]} 70. Bc4 {[%emt 0:00:04]} Rg3 {[%emt 0:00:02]} 71. Ke4 {[%emt 0:00:05]} Kd6 {[%emt 0:00:06]} 72. Nf7+ {[%emt 0:00:01]} Ke7 {[%emt 0:00:02]} 73. Kd5 {[%emt 0:00:13]} Rh3 {[%emt 0:00:04]} 74. Kxc5 {[%emt 0:00:02]} Rxh5+ {[%emt 0:00:03]} 75. Kc6 {[%emt 0:00:05]} Rf5 {[%emt 0:00:04]} 76. b4 {[%emt 0:00:07]} Rf6+ {[%emt 0:00:10]} 77. Kc5 {[%emt 0:00:04]} Rxf4 {[%emt 0:00:06]} 78. b5 {[%emt 0:00:05]} h5 {[%emt 0:00:16]} 79. b6 {[%emt 0:00:01]} Rf5+ {[%emt 0:00:02]} 80. Kc6 {[%emt 0:00:01]} Rf6+ {[%emt 0:00:02]} 81. Kc7 {[%emt 0:00:02]} Rf4 {[%emt 0:00:09]} 82. Bd5 {[%emt 0:00:03]} Rb4 {[%emt 0:00:02]} 83. b7 {[%emt 0:00:04]} h4 {[%emt 0:00:04]} 84. b8=Q {[%emt 0:00:04]} Rxb8 {[%emt 0:00:02]} 85. Kxb8 {[%emt 0:00:01]} h3 {[%emt 0:00:04]} 86. Ng5 {[%emt 0:00:05]} h2 {[%emt 0:00:02]} 87. Bh1 {[%emt 0:00:05]} Kf6 {[%emt 0:00:03]} 88. Nf3 {[%emt 0:00:02]} Kf5 {[%emt 0:00:05]} 89. Nxh2 {[%emt 0:00:01]} g5 {[%emt 0:00:03]} 90. Kc7 {[%emt 0:00:08]} Kf4 {[%emt 0:00:00]} 91. Nf1 {[%emt 0:00:03]} g4 {[%emt 0:00:03]} 92. Kd6 {[%emt 0:00:02]} Kg5 {[%emt 0:00:20]} 93. Ke5 {[%emt 0:00:03]} Kh4 {[%emt 0:00:01]} 94. Bg2 {[%emt 0:00:02]} Kg5 {[%emt 0:00:09]} 95. Ke4 {[%emt 0:00:01]} Kh4 {[%emt 0:00:03]} 96. Kf4 {[%emt 0:00:03]} Kh5 {[%emt 0:00:01]} 97. Ne3 {[%emt 0:00:04]} Kh4 {[%emt 0:00:05]} 98. Nxg4 {[%emt 0:00:02]} Kh5 {[%emt 0:00:01]} 99. Be4 {[%emt 0:00:08]} Kh4 {[%emt 0:00:01]} 100. Bg6 {[%emt 0:00:09]} Kh3 {[%emt 0:00:02]} 101. Ne3 {[%emt 0:00:08]} Kh4 {[%emt 0:00:03]} 102. Ng2+ {[%emt 0:00:05]} Kh3 {[%emt 0:00:00]} 103. Kf3 {[%emt 0:00:02]} Kh2 {[%emt 0:00:03]} 104. Bf5 {[%emt 0:00:14]} Kg1 {[%emt 0:00:03]} 105. Bd3 {[%emt 0:00:05]} Kh2 {[%emt 0:00:02]} 106. Kf2 {[%emt 0:00:10]} Kh3 {[%emt 0:00:07]} 107. Bf5+ {[%emt 0:00:01]} Kh2 {[%emt 0:00:03]} 108. Be6 {[%emt 0:00:14]} Kh1 {[%emt 0:00:01]} 109. Bd7 {[%emt 0:00:12]} Kh2 {[%emt 0:00:03]} 110. Ne1 {[%emt 0:00:07]} Kh1 {[%emt 0:00:05]} 111. Bc8 {[%emt 0:00:10]} Kh2 {[%emt 0:00:02]} 112. Nf3+ {[%emt 0:00:06]} Kh1 {[%emt 0:00:01]} 113. Ne1 {[%emt 0:00:05]} Kh2 {[%emt 0:00:02]} 114. Bd7 {[%emt 0:00:04]} Kh1 {[%emt 0:00:03]} 115. Bh3 {[%emt 0:00:04]} Kh2 {[%emt 0:00:02]} 116. Bf1 {[%emt 0:00:01]} Kh1 {[%emt 0:00:02]} 117. Bg2+ {[%emt 0:00:00]} Kh2 {[%emt 0:00:01]} 118. Nf3# 1-0

[Event "3rd FIDE WCCC Rapid G12 2019"]
[Site "Minsk"]
[Date "2019.08.17"]
[Round "8.3"]
[White "Nguyen, Le Cam Hien"]
[Black "Komissarova, Soigina"]
[Result "0-1"]
[ECO "B41"]
[WhiteElo "1579"]
[BlackElo "1663"]
[Annotator "NA"]
[PlyCount "192"]
[EventDate "2019.08.16"]
[EventType "swiss"]
[EventCountry "BLR"]
[SourceTitle "playchess.com"]
[Source "ChessBase"]
[SourceQuality "1"]
[TimeControl "600+5"]

1. e4 {[%emt 0:00:00]} c5 {[%emt 0:00:00]} 2. Nf3 {[%emt 0:00:00]} e6 {[%emt 0:00:00]} 3. d4 {[%emt 0:00:04]} cxd4 {[%emt 0:00:00]} 4. Nxd4 {[%emt 0:00:02]} a6 {[%emt 0:00:00]} 5. c4 {[%emt 0:00:05]} Nf6 {[%emt 0:00:03]} 6. Nc3 {[%emt 0:00:03]} Qc7 {[%emt 0:00:02]} 7. Be3 {[%emt 0:00:16]} d6 {[%emt 0:00:16]} 8. Be2 {[%emt 0:00:06]} Be7 {[%emt 0:00:02]} 9. O-O {[%emt 0:00:05]} b6 {[%emt 0:00:03]} 10. Rc1 {[%emt 0:00:06]} Bb7 {[%emt 0:00:04]} 11. f3 {[%emt 0:00:03]} O-O {[%emt 0:00:03]} 12. b3 {[%emt 0:00:09]} Nbd7 {[%emt 0:00:03]} 13. Qe1 {[%emt 0:00:15]} Rac8 {[%emt 0:00:23]} 14. Qf2 {[%emt 0:00:26]} Rfe8 {[%emt 0:00:31]} 15. Rfd1 {[%emt 0:00:06]} Bf8 {[%emt 0:00:03]} 16. Bf1 {[%emt 0:00:49]} Ne5 {[%emt 0:00:42]} 17. Nde2 {[%emt 0:00:27]} Nfd7 {[%emt 0:00:08]} 18. h3 {[%emt 0:00:59]} Nc5 {[%emt 0:00:04]} 19. Ng3 {[%emt 0:00:05]} Ncd7 {[%emt 0:01:44]} 20. f4 {[%emt 0:00:32]} Ng6 {[%emt 0:00:06]} 21. b4 {[%emt 0:01:13]} Qb8 {[%emt 0:01:37]} 22. a3 {[%emt 0:00:30]} Ba8 {[%emt 0:01:14]} 23. Rc2 {[%emt 0:01:16]} Red8 {[%emt 0:00:56]} 24. Nge2 {[%emt 0:00:56]} Rxc4 {[%emt 0:00:53]} 25. Nd4 {[%emt 0:00:09]} Rc7 {[%emt 0:00:17]} 26. f5 {[%emt 0:00:25]} exf5 {[%emt 0:00:20]} 27. Nxf5 {[%emt 0:00:51]} Qc8 {[%emt 0:00:07]} 28. Rdc1 {[%emt 0:00:08]} Bb7 {[%emt 0:01:26]} 29. Nd5 {[%emt 0:00:07]} Rxc2 {[%emt 0:00:02]} 30. Rxc2 {[%emt 0:00:02]} Qa8 {[%emt 0:00:03]} 31. Nxb6 {[%emt 0:00:22]} Nxb6 {[%emt 0:00:01]} 32. Bxb6 {[%emt 0:00:01]} Re8 {[%emt 0:00:01]} 33. Rc7 {[%emt 0:00:18]} Ne5 {[%emt 0:00:31]} 34. Bd4 {[%emt 0:00:25]} Qb8 {[%emt 0:00:31]} 35. Rc1 {[%emt 0:00:25]} Bxe4 {[%emt 0:00:17]} 36. Re1 {[%emt 0:00:20]} Bb7 37. Bxe5 {[%emt 0:00:11]} dxe5 {[%emt 0:00:08]} 38. Bc4 {[%emt 0:00:05]} Qc7 {[%emt 0:00:15]} 39. Qe2 {[%emt 0:00:11]} Rc8 {[%emt 0:00:05]} 40. Bxa6 {[%emt 0:00:03]} Qb6+ {[%emt 0:00:03]} 41. Kh1 {[%emt 0:00:04]} Bxa6 {[%emt 0:00:01]} 42. Qxe5 {[%emt 0:00:04]} g6 {[%emt 0:00:12]} 43. Ne7+ {[%emt 0:00:16]} Bxe7 44. Qxe7 {[%emt 0:00:02]} Bb5 {[%emt 0:00:04]} 45. Qe5 {[%emt 0:00:19]} Ra8 {[%emt 0:00:01]} 46. Re3 {[%emt 0:00:08]} Ba4 {[%emt 0:00:08]} 47. Rf3 {[%emt 0:00:00]} Bc6 {[%emt 0:00:00]} 48. Rf4 {[%emt 0:00:01]} Rxa3 {[%emt 0:00:05]} 49. Qf6 {[%emt 0:00:07]} Ra7 {[%emt 0:00:05]} 50. Kh2 {[%emt 0:00:06]} Qc7 {[%emt 0:00:07]} 51. Kg1 {[%emt 0:00:01]} Qb6+ {[%emt 0:00:07]} 52. Kh2 {[%emt 0:00:02]} Qc7 {[%emt 0:00:02]} 53. Kg1 {[%emt 0:00:03]} Ra1+ {[%emt 0:00:04]} 54. Qxa1 {[%emt 0:00:07]} Qxf4 {[%emt 0:00:01]} 55. Qc3 {[%emt 0:00:05]} Bb7 {[%emt 0:00:04]} 56. Qc5 {[%emt 0:00:03]} Qb8 {[%emt 0:00:10]} 57. b5 {[%emt 0:00:09]} h5 {[%emt 0:00:03]} 58. b6 {[%emt 0:00:03]} Ba8 {[%emt 0:00:01]} 59. Kf2 {[%emt 0:00:09]} Qb7 {[%emt 0:00:04]} 60. g4 {[%emt 0:00:09]} hxg4 {[%emt 0:00:08]} 61. hxg4 Qf3+ {[%emt 0:00:01]} 62. Ke1 {[%emt 0:00:05]} Qe4+ {[%emt 0:00:04]} 63. Kf2 {[%emt 0:00:05]} Qf4+ {[%emt 0:00:02]} 64. Ke1 {[%emt 0:00:05]} Qg3+ {[%emt 0:00:02]} 65. Kd2 {[%emt 0:00:06]} Qg2+ {[%emt 0:00:03]} 66. Ke1 {[%emt 0:00:05]} Qe4+ {[%emt 0:00:03]} 67. Kf2 {[%emt 0:00:02]} Kg7 {[%emt 0:00:07]} 68. Qc3+ {[%emt 0:00:03]} Kf8 {[%emt 0:00:18]} 69. Qc8+ {[%emt 0:00:02]} Ke7 {[%emt 0:00:02]} 70. Qc7+ {[%emt 0:00:05]} Ke6 {[%emt 0:00:03]} 71. Qc8+ {[%emt 0:00:05]} Kf6 {[%emt 0:00:06]} 72. Qd8+ {[%emt 0:00:05]} Kg7 {[%emt 0:00:13]} 73. g5 {[%emt 0:00:07]} Qf3+ {[%emt 0:00:08]} 74. Ke1 {[%emt 0:00:03]} Qe3+ {[%emt 0:00:03]} 75. Kf1 {[%emt 0:00:10]} Qf3+ {[%emt 0:00:10]} 76. Ke1 {[%emt 0:00:01]} Qe3+ {[%emt 0:00:04]} 77. Kf1 {[%emt 0:00:01]} Qf3+ {[%emt 0:00:04]} 78. Ke1 {[%emt 0:00:01]} Bb7 {[%emt 0:00:03]} 79. Qd4+ {[%emt 0:00:06]} Kh7 {[%emt 0:00:05]} 80. Qd8 {[%emt 0:00:16]} Qe4+ {[%emt 0:00:08]} 81. Kf2 {[%emt 0:00:05]} Qc2+ {[%emt 0:00:04]} 82. Ke3 {[%emt 0:00:09]} Qc1+ {[%emt 0:00:03]} 83. Kf2 {[%emt 0:00:09]} Qc2+ {[%emt 0:00:12]} 84. Ke3 {[%emt 0:00:05]} Qc3+ {[%emt 0:00:09]} 85. Kf2 {[%emt 0:00:03]} Qf3+ {[%emt 0:00:03]} 86. Ke1 {[%emt 0:00:01]} Ba6 {[%emt 0:00:06]} 87. Qe7 {[%emt 0:00:11]} Qf1+ {[%emt 0:00:09]} 88. Kd2 {[%emt 0:00:02]} Qd3+ {[%emt 0:00:02]} 89. Kc1 {[%emt 0:00:07]} Qc4+ {[%emt 0:00:06]} 90. Kd2 {[%emt 0:00:03]} Qd5+ {[%emt 0:00:03]} 91. Kc1 {[%emt 0:00:07]} Bb7 {[%emt 0:00:08]} 92. Qf6 {[%emt 0:00:17]} Qc6+ {[%emt 0:00:03]} 93. Qxc6 {[%emt 0:00:06]} Bxc6 {[%emt 0:00:01]} 94. Kc2 {[%emt 0:00:01]} Kg7 {[%emt 0:00:01]} 95. Kc3 {[%emt 0:00:00]} f6 {[%emt 0:00:01]} 96. gxf6+ {[%emt 0:00:10]} Kxf6 0-1

[Event "3rd FIDE WCCC Rapid G12 2019"]
[Site "Minsk"]
[Date "2019.08.17"]
[Round "8.4"]
[White "Mikheeva, Galina"]
[Black "Kirdyashkina, Ekaterina"]
[Result "1-0"]
[ECO "C55"]
[WhiteElo "1952"]
[BlackElo "1691"]
[Annotator "NA"]
[PlyCount "61"]
[EventDate "2019.08.16"]
[EventType "swiss"]
[EventCountry "BLR"]
[SourceTitle "playchess.com"]
[Source "ChessBase"]
[SourceQuality "1"]
[TimeControl "600+5"]

1. e4 {[%emt 0:00:00]} e5 {[%emt 0:00:00]} 2. Nf3 {[%emt 0:00:00]} Nc6 {[%emt 0:00:00]} 3. d4 {[%emt 0:00:04]} exd4 {[%emt 0:00:02]} 4. Bc4 {[%emt 0:00:01]} Nf6 {[%emt 0:00:01]} 5. O-O {[%emt 0:00:01]} d6 {[%emt 0:00:06]} 6. Nxd4 {[%emt 0:00:06]} Nxd4 {[%emt 0:00:02]} 7. Qxd4 {[%emt 0:00:02]} Be7 {[%emt 0:00:02]} 8. Nc3 {[%emt 0:00:19]} O-O {[%emt 0:00:06]} 9. b3 {[%emt 0:01:01]} Nd7 {[%emt 0:00:11]} 10. Nd5 {[%emt 0:00:26]} Ne5 {[%emt 0:00:09]} 11. Bb2 {[%emt 0:00:14]} Bf6 {[%emt 0:01:48]} 12. Nxf6+ {[%emt 0:00:05]} Qxf6 {[%emt 0:00:02]} 13. Be2 {[%emt 0:01:33]} b6 {[%emt 0:02:22]} 14. f4 {[%emt 0:00:24]} Nd7 {[%emt 0:01:25]} 15. e5 {[%emt 0:02:06]} dxe5 {[%emt 0:00:04]} 16. fxe5 {[%emt 0:00:01]} Qg6 {[%emt 0:01:48]} 17. Bd3 {[%emt 0:00:09]} Qh6 {[%emt 0:00:52]} 18. Be4 {[%emt 0:02:24]} Rb8 {[%emt 0:00:05]} 19. Rf3 {[%emt 0:00:57]} Nc5 {[%emt 0:00:12]} 20. Bd5 {[%emt 0:00:45]} Ne6 {[%emt 0:00:30]} 21. Qf2 {[%emt 0:00:23]} Ng5 {[%emt 0:00:46]} 22. Rg3 {[%emt 0:00:28]} Ne6 {[%emt 0:00:28]} 23. Rf1 {[%emt 0:00:09]} Bd7 {[%emt 0:00:11]} 24. Rf3 {[%emt 0:00:04]} Qg6 {[%emt 0:00:12]} 25. Bc4 Be8 {[%emt 0:00:28]} 26. Bd3 {[%emt 0:00:12]} Qh5 {[%emt 0:00:03]} 27. Rh3 {[%emt 0:00:02]} Qg4 {[%emt 0:00:06]} 28. Bxh7+ {[%emt 0:00:01]} Kh8 {[%emt 0:00:02]} 29. Bf5+ {[%emt 0:00:01]} Qxh3 {[%emt 0:00:03]} 30. Bxh3 {[%emt 0:00:02]} Bb5 {[%emt 0:00:10]} 31. c4 {[%emt 0:00:01]} 1-0